[Event "*** SCC Grand Prix: Titled Tuesday Blitz"]
[Site "Chess.com"]
[Date "2020.08.11"]
[Round "7"]
[White "GoldenShare"]
[Black "ChronicUnhappiness"]
[Result "1-0"]
[WhiteElo "2501"]
[BlackElo "2352"]
[TimeControl "180+1"]
[EndTime "11:17:43 PDT"]
[Termination "GoldenShare won by resignation"]

1. e4 {[%clk 0:03:00.9]} 1... c5 {[%clk 0:02:59.4]} 2. Nf3 {[%clk 0:03:00.9]}
2... Nc6 {[%clk 0:02:59.1]} 3. Bb5 {[%clk 0:03:00.8]} 3... g6 {[%clk 0:02:57.7]}
4. O-O {[%clk 0:03:00.8]} 4... Bg7 {[%clk 0:02:57.3]} 5. c3 {[%clk 0:03:01.2]}
5... Nf6 {[%clk 0:02:57.3]} 6. e5 {[%clk 0:02:59]} 6... Nd5 {[%clk 0:02:56.8]}
7. Re1 {[%clk 0:02:57.6]} 7... O-O {[%clk 0:02:55.6]} 8. d4 {[%clk 0:02:57.9]}
8... cxd4 {[%clk 0:02:45.7]} 9. cxd4 {[%clk 0:02:58.8]} 9... d6 {[%clk
0:02:43.1]} 10. Nc3 {[%clk 0:02:58.1]} 10... Nxc3 {[%clk 0:02:38.1]} 11. bxc3
{[%clk 0:02:59]} 11... Bg4 {[%clk 0:02:37.8]} 12. exd6 {[%clk 0:02:55.1]} 12...
Qxd6 {[%clk 0:02:25.4]} 13. h3 {[%clk 0:02:54.9]} 13... Bf5 {[%clk 0:02:02.6]}
14. a4 {[%clk 0:02:53]} 14... Rfe8 {[%clk 0:01:44.7]} 15. Ba3 {[%clk 0:02:52.9]}
15... Qc7 {[%clk 0:01:30.7]} 16. d5 {[%clk 0:02:15.5]} 16... a6 {[%clk
0:01:30.3]} 17. Bf1 {[%clk 0:02:13.3]} 17... Na5 {[%clk 0:01:24.9]} 18. Rc1
{[%clk 0:01:56.8]} 18... Nc4 {[%clk 0:01:22.3]} 19. Bxc4 {[%clk 0:01:49.8]}
19... Qxc4 {[%clk 0:01:22.4]} 20. Bxe7 {[%clk 0:01:50.7]} 20... Bd7 {[%clk
0:01:05.9]} 21. a5 {[%clk 0:01:38.2]} 21... Rac8 {[%clk 0:00:40.4]} 22. Ne5
{[%clk 0:01:21.2]} 22... Qa4 {[%clk 0:00:39.2]} 23. Qxa4 {[%clk 0:00:53.3]}
23... Bxa4 {[%clk 0:00:39]} 24. d6 {[%clk 0:00:49.4]} 24... Bxe5 {[%clk
0:00:25.5]} 25. Rxe5 {[%clk 0:00:50.3]} 25... f5 {[%clk 0:00:18.2]} 26. Rb1
{[%clk 0:00:46.4]} 26... Rb8 {[%clk 0:00:10.6]} 27. Rb4 {[%clk 0:00:41.6]} 27...
Bd7 {[%clk 0:00:09.8]} 28. Rc5 {[%clk 0:00:38.6]} 28... Rbc8 {[%clk 0:00:05.7]}
29. Rxc8 {[%clk 0:00:34.1]} 29... Bxc8 {[%clk 0:00:06.6]} 30. Rc4 {[%clk
0:00:33.9]} 30... Kf7 {[%clk 0:00:04.7]} 31. Rxc8 {[%clk 0:00:31.6]} 31... Rxc8
{[%clk 0:00:03.7]} 32. d7 {[%clk 0:00:32.1]} 32... Rb8 {[%clk 0:00:03.3]} 33.
d8=Q {[%clk 0:00:32]} 33... Rxd8 {[%clk 0:00:03.5]} 34. Bxd8 {[%clk 0:00:32.9]}
34... Ke6 {[%clk 0:00:03.1]} 35. Bb6 {[%clk 0:00:33.8]} 35... Kd5 {[%clk
0:00:03.8]} 36. Kf1 {[%clk 0:00:29.2]} 36... Kc4 {[%clk 0:00:04.7]} 37. Ke2
{[%clk 0:00:29.1]} 37... Kxc3 {[%clk 0:00:04.7]} 38. Ke3 {[%clk 0:00:30]} 38...
Kc2 {[%clk 0:00:04.7]} 39. Kf4 {[%clk 0:00:29.4]} 39... Kd3 {[%clk 0:00:03.8]}
40. Kg5 {[%clk 0:00:29.7]} 40... Ke2 {[%clk 0:00:04.7]} 41. Kh6 {[%clk
0:00:29.8]} 41... Kf1 {[%clk 0:00:05.6]} 42. Kxh7 {[%clk 0:00:29.9]} 42... Kxg2
{[%clk 0:00:05.8]} 43. Kxg6 {[%clk 0:00:28.2]} 43... Kxh3 {[%clk 0:00:05.9]} 44.
Kxf5 {[%clk 0:00:28.6]} 1-0

[Event "*** SCC Grand Prix: Titled Tuesday Blitz"]
[Site "Chess.com"]
[Date "2020.08.11"]
[Round "7"]
[White "Zarikovs1999"]
[Black "icychess54"]
[Result "0-1"]
[WhiteElo "2360"]
[BlackElo "2238"]
[TimeControl "180+1"]
[EndTime "11:17:43 PDT"]
[Termination "icychess54 won by checkmate"]

1. c4 {[%clk 0:02:56.6]} 1... c6 {[%clk 0:02:52.4]} 2. g3 {[%clk 0:02:50.5]}
2... d5 {[%clk 0:02:52.3]} 3. cxd5 {[%clk 0:02:50.6]} 3... cxd5 {[%clk
0:02:52.2]} 4. Bg2 {[%clk 0:02:50.9]} 4... Nf6 {[%clk 0:02:51.9]} 5. Nf3 {[%clk
0:02:44.4]} 5... Nc6 {[%clk 0:02:49.9]} 6. O-O {[%clk 0:02:44.3]} 6... Bf5
{[%clk 0:02:44.7]} 7. d4 {[%clk 0:02:38]} 7... e6 {[%clk 0:02:44.3]} 8. Nc3
{[%clk 0:02:37.7]} 8... Be7 {[%clk 0:02:41.6]} 9. b3 {[%clk 0:02:27.8]} 9... h6
{[%clk 0:02:37.8]} 10. Bb2 {[%clk 0:02:27.6]} 10... O-O {[%clk 0:02:35.5]} 11.
a3 {[%clk 0:02:27]} 11... Rc8 {[%clk 0:02:34.7]} 12. Rc1 {[%clk 0:02:24.5]}
12... Na5 {[%clk 0:02:20.6]} 13. Na4 {[%clk 0:02:05.2]} 13... Ne4 {[%clk
0:02:10.3]} 14. Nd2 {[%clk 0:01:48.9]} 14... Nxd2 {[%clk 0:02:00.9]} 15. Rxc8
{[%clk 0:01:48.8]} 15... Qxc8 {[%clk 0:01:55.8]} 16. Qxd2 {[%clk 0:01:49.1]}
16... Nxb3 {[%clk 0:01:52.5]} 17. Qe3 {[%clk 0:01:48.8]} 17... Na5 {[%clk
0:01:07.6]} 18. Bxd5 {[%clk 0:01:33.7]} 18... Qc2 {[%clk 0:00:48.3]} 19. Qc3
{[%clk 0:00:19.7]} 19... exd5 {[%clk 0:00:36]} 20. Qxa5 {[%clk 0:00:17.1]} 20...
Bd7 {[%clk 0:00:28.3]} 21. Nc5 {[%clk 0:00:08.7]} 21... Bxc5 {[%clk 0:00:25.9]}
22. Qxc5 {[%clk 0:00:08]} 22... Qxb2 {[%clk 0:00:26.3]} 23. Qxd5 {[%clk
0:00:07.8]} 23... Bc6 {[%clk 0:00:25.6]} 24. Qd6 {[%clk 0:00:08.3]} 24... Qxe2
{[%clk 0:00:24.3]} 25. d5 {[%clk 0:00:06.3]} 25... Qd3 {[%clk 0:00:23.3]} 26.
Qf4 {[%clk 0:00:01.6]} 26... Qxd5 {[%clk 0:00:22.3]} 27. f3 {[%clk 0:00:02.5]}
27... Re8 {[%clk 0:00:21.6]} 28. Rf2 {[%clk 0:00:01.5]} 28... Qd1+ {[%clk
0:00:20.3]} 29. Kg2 {[%clk 0:00:02.4]} 29... Re2 {[%clk 0:00:18.5]} 30. Rxe2
{[%clk 0:00:01.5]} 30... Qxe2+ {[%clk 0:00:17.7]} 31. Kh3 {[%clk 0:00:02.4]}
31... Qxf3 {[%clk 0:00:16.8]} 32. Qb8+ {[%clk 0:00:03.1]} 32... Kh7 {[%clk
0:00:17]} 33. Qxa7 {[%clk 0:00:03.3]} 33... Qf5+ {[%clk 0:00:16.7]} 34. g4
{[%clk 0:00:02.8]} 34... Qf3+ {[%clk 0:00:15.7]} 35. Kh4 {[%clk 0:00:03]} 35...
Qg2 {[%clk 0:00:14.3]} 36. Kh5 {[%clk 0:00:03.9]} 36... Qh3# {[%clk 0:00:13.8]}
0-1

[Event "*** SCC Grand Prix: Titled Tuesday Blitz"]
[Site "Chess.com"]
[Date "2020.08.11"]
[Round "7"]
[White "rynos0411"]
[Black "JonasHilwerda"]
[Result "0-1"]
[WhiteElo "2330"]
[BlackElo "2225"]
[TimeControl "180+1"]
[EndTime "11:17:45 PDT"]
[Termination "JonasHilwerda won by resignation"]

1. d4 {[%clk 0:03:00.9]} 1... Nf6 {[%clk 0:02:55.6]} 2. c4 {[%clk 0:03:00.1]}
2... e5 {[%clk 0:02:53]} 3. dxe5 {[%clk 0:02:58.5]} 3... Ng4 {[%clk 0:02:51.8]}
4. Bf4 {[%clk 0:02:58.9]} 4... g5 {[%clk 0:02:51]} 5. Bg3 {[%clk 0:02:58.4]}
5... Nc6 {[%clk 0:02:50.9]} 6. Nf3 {[%clk 0:02:58]} 6... Bg7 {[%clk 0:02:50.6]}
7. Nc3 {[%clk 0:02:56.1]} 7... Ngxe5 {[%clk 0:02:50.7]} 8. e3 {[%clk 0:02:55.1]}
8... d6 {[%clk 0:02:49.2]} 9. Be2 {[%clk 0:02:54.1]} 9... Be6 {[%clk 0:02:46]}
10. Nxe5 {[%clk 0:02:48.9]} 10... Nxe5 {[%clk 0:02:44.4]} 11. O-O {[%clk
0:02:48.3]} 11... h5 {[%clk 0:02:40.1]} 12. h3 {[%clk 0:02:44.4]} 12... g4
{[%clk 0:02:18.2]} 13. h4 {[%clk 0:02:20.1]} 13... Ng6 {[%clk 0:02:17]} 14. c5
{[%clk 0:02:15.3]} 14... dxc5 {[%clk 0:02:02.9]} 15. Qa4+ {[%clk 0:02:11.7]}
15... c6 {[%clk 0:01:53.6]} 16. Ne4 {[%clk 0:01:58]} 16... Be5 {[%clk
0:01:29.2]} 17. Nxc5 {[%clk 0:01:31.2]} 17... Bxg3 {[%clk 0:00:55.1]} 18. fxg3
{[%clk 0:01:32.1]} 18... Qd6 {[%clk 0:00:46.4]} 19. Nxe6 {[%clk 0:01:31.9]}
19... Qxe6 {[%clk 0:00:41.6]} 20. Bc4 {[%clk 0:01:19.4]} 20... Qxe3+ {[%clk
0:00:33.3]} 21. Kh2 {[%clk 0:01:18.7]} 21... O-O-O {[%clk 0:00:20.5]} 22. Bxf7
{[%clk 0:01:09.4]} 22... Ne5 {[%clk 0:00:17.5]} 23. Rae1 {[%clk 0:01:05.9]}
23... Qc5 {[%clk 0:00:16.8]} 24. b4 {[%clk 0:00:59.3]} 24... Qd4 {[%clk
0:00:17.1]} 25. Be6+ {[%clk 0:00:55.5]} 25... Kb8 {[%clk 0:00:17]} 26. Rf4
{[%clk 0:00:55.3]} 26... Qc3 {[%clk 0:00:17]} 27. Rfe4 {[%clk 0:00:48.1]} 27...
Nd3 {[%clk 0:00:16.3]} 28. R1e3 {[%clk 0:00:46]} 28... Rhf8 {[%clk 0:00:10.9]}
29. b5 {[%clk 0:00:41.8]} 29... Rf1 {[%clk 0:00:10.8]} 30. bxc6 {[%clk
0:00:37.8]} 30... Nf2 {[%clk 0:00:08]} 31. Re1 {[%clk 0:00:28.2]} 31... Rxe1
{[%clk 0:00:06.5]} 32. Rxe1 {[%clk 0:00:26.8]} 32... Qxe1 {[%clk 0:00:07.4]} 33.
Qf4+ {[%clk 0:00:20.4]} 33... Ka8 {[%clk 0:00:05.2]} 34. cxb7+ {[%clk
0:00:10.3]} 34... Kxb7 {[%clk 0:00:06.1]} 35. Qf7+ {[%clk 0:00:10.1]} 35... Kb6
{[%clk 0:00:06.1]} 36. Qxf2+ {[%clk 0:00:04.8]} 36... Qxf2 {[%clk 0:00:07]} 0-1

[Event "*** SCC Grand Prix: Titled Tuesday Blitz"]
[Site "Chess.com"]
[Date "2020.08.11"]
[Round "7"]
[White "crescentmoon2411"]
[Black "Ind1anStar"]
[Result "1-0"]
[WhiteElo "2743"]
[BlackElo "2518"]
[TimeControl "180+1"]
[EndTime "11:17:46 PDT"]
[Termination "crescentmoon2411 won on time"]

1. c4 {[%clk 0:03:00.9]} 1... e6 {[%clk 0:02:59.8]} 2. Nc3 {[%clk 0:03:00]} 2...
d5 {[%clk 0:02:59.7]} 3. d4 {[%clk 0:02:59.8]} 3... Be7 {[%clk 0:02:59.2]} 4.
cxd5 {[%clk 0:02:59.7]} 4... exd5 {[%clk 0:02:59.2]} 5. Bf4 {[%clk 0:03:00.4]}
5... Nf6 {[%clk 0:02:59.8]} 6. e3 {[%clk 0:03:00.3]} 6... O-O {[%clk 0:02:59.7]}
7. Bd3 {[%clk 0:03:00.5]} 7... c6 {[%clk 0:03:00.4]} 8. h3 {[%clk 0:02:55.2]}
8... Nbd7 {[%clk 0:03:00.7]} 9. Nf3 {[%clk 0:02:51.8]} 9... Re8 {[%clk
0:03:01.1]} 10. Qc2 {[%clk 0:02:49]} 10... Nf8 {[%clk 0:03:01]} 11. O-O {[%clk
0:02:33.1]} 11... Ng6 {[%clk 0:03:00.8]} 12. Bg3 {[%clk 0:02:14.7]} 12... Bd6
{[%clk 0:02:54]} 13. Bxd6 {[%clk 0:02:13.2]} 13... Qxd6 {[%clk 0:02:54.9]} 14.
Rab1 {[%clk 0:02:07.8]} 14... Bd7 {[%clk 0:02:34.4]} 15. b4 {[%clk 0:02:07]}
15... a6 {[%clk 0:02:34.5]} 16. a4 {[%clk 0:02:04.2]} 16... Rac8 {[%clk
0:02:30.9]} 17. Rfc1 {[%clk 0:02:01.8]} 17... b5 {[%clk 0:02:20.3]} 18. Bf5
{[%clk 0:01:31.7]} 18... Ne7 {[%clk 0:01:29.1]} 19. Bxd7 {[%clk 0:01:29.5]}
19... Nxd7 {[%clk 0:01:30]} 20. a5 {[%clk 0:01:14]} 20... Qf6 {[%clk 0:01:10.7]}
21. e4 {[%clk 0:01:07.2]} 21... dxe4 {[%clk 0:01:00.3]} 22. Nxe4 {[%clk
0:01:08.1]} 22... Qg6 {[%clk 0:00:54.6]} 23. Ne5 {[%clk 0:01:04]} 23... Nxe5
{[%clk 0:00:33.4]} 24. dxe5 {[%clk 0:01:04.9]} 24... Nf5 {[%clk 0:00:32]} 25.
Nc5 {[%clk 0:01:04.2]} 25... Rxe5 {[%clk 0:00:25.5]} 26. Re1 {[%clk 0:00:47.9]}
26... Rce8 {[%clk 0:00:19.9]} 27. Rxe5 {[%clk 0:00:46.9]} 27... Rxe5 {[%clk
0:00:20.8]} 28. Nxa6 {[%clk 0:00:41.6]} 28... h6 {[%clk 0:00:15.8]} 29. Nc5
{[%clk 0:00:39.7]} 29... Kh7 {[%clk 0:00:12.8]} 30. a6 {[%clk 0:00:39.2]} 30...
Re8 {[%clk 0:00:07.5]} 31. g4 {[%clk 0:00:32.8]} 31... Nd6 {[%clk 0:00:06.4]}
32. Qxg6+ {[%clk 0:00:32.3]} 32... Kxg6 {[%clk 0:00:07.3]} 33. Rd1 {[%clk
0:00:28.5]} 33... Nc4 {[%clk 0:00:04.7]} 34. Kg2 {[%clk 0:00:25.2]} 34... f6
{[%clk 0:00:03.4]} 35. Rd7 {[%clk 0:00:23.6]} 35... Re2 {[%clk 0:00:03.1]} 36.
a7 {[%clk 0:00:16.9]} 36... Ra2 {[%clk 0:00:02.7]} 37. Ne6 {[%clk 0:00:16.9]}
1-0

[Event "*** SCC Grand Prix: Titled Tuesday Blitz"]
[Site "Chess.com"]
[Date "2020.08.11"]
[Round "7"]
[White "peixe64"]
[Black "vrekhson"]
[Result "1-0"]
[WhiteElo "2308"]
[BlackElo "2150"]
[TimeControl "180+1"]
[EndTime "11:17:51 PDT"]
[Termination "peixe64 won on time"]

1. e4 {[%clk 0:03:00.9]} 1... c5 {[%clk 0:02:56.8]} 2. Nf3 {[%clk 0:03:01.2]}
2... a6 {[%clk 0:02:51.7]} 3. c4 {[%clk 0:03:00.1]} 3... Nc6 {[%clk 0:02:51]} 4.
d4 {[%clk 0:03:00.1]} 4... cxd4 {[%clk 0:02:51.9]} 5. Nxd4 {[%clk 0:03:01]} 5...
Nf6 {[%clk 0:02:51.9]} 6. Nc3 {[%clk 0:03:00.5]} 6... e5 {[%clk 0:02:51.7]} 7.
Nc2 {[%clk 0:02:59.3]} 7... Bc5 {[%clk 0:02:50.9]} 8. Be3 {[%clk 0:02:57.1]}
8... Bxe3 {[%clk 0:02:45.7]} 9. Nxe3 {[%clk 0:02:58]} 9... d6 {[%clk 0:02:45.9]}
10. Be2 {[%clk 0:02:48.6]} 10... Nd4 {[%clk 0:02:45.8]} 11. O-O {[%clk
0:02:48.3]} 11... O-O {[%clk 0:02:37.1]} 12. Kh1 {[%clk 0:02:39]} 12... Be6
{[%clk 0:02:35.7]} 13. f4 {[%clk 0:02:38.1]} 13... Rc8 {[%clk 0:02:29.8]} 14. f5
{[%clk 0:02:33.2]} 14... Bd7 {[%clk 0:02:29.8]} 15. g4 {[%clk 0:02:19.8]} 15...
h6 {[%clk 0:02:25.4]} 16. Rg1 {[%clk 0:02:13]} 16... Bc6 {[%clk 0:02:21.2]} 17.
Ned5 {[%clk 0:02:09.8]} 17... Bxd5 {[%clk 0:02:19.6]} 18. exd5 {[%clk
0:02:03.6]} 18... Nh7 {[%clk 0:01:44.9]} 19. Qd3 {[%clk 0:01:42.3]} 19... Ng5
{[%clk 0:01:25.2]} 20. Raf1 {[%clk 0:01:05.6]} 20... f6 {[%clk 0:01:18.6]} 21.
h4 {[%clk 0:01:03]} 21... Nf7 {[%clk 0:01:18.7]} 22. Ne4 {[%clk 0:00:58.9]}
22... Qb6 {[%clk 0:01:17.4]} 23. b3 {[%clk 0:00:57.8]} 23... a5 {[%clk
0:01:03.5]} 24. Bd1 {[%clk 0:00:56.4]} 24... a4 {[%clk 0:01:02.8]} 25. bxa4
{[%clk 0:00:53.7]} 25... Qa6 {[%clk 0:00:46.1]} 26. Bb3 {[%clk 0:00:51.3]} 26...
Rfd8 {[%clk 0:00:33.1]} 27. Rg2 {[%clk 0:00:44.6]} 27... Kf8 {[%clk 0:00:32.9]}
28. g5 {[%clk 0:00:39.4]} 28... hxg5 {[%clk 0:00:32.3]} 29. hxg5 {[%clk
0:00:39.7]} 29... Ke7 {[%clk 0:00:30.8]} 30. gxf6+ {[%clk 0:00:36.2]} 30... gxf6
{[%clk 0:00:31.7]} 31. Rg7 {[%clk 0:00:28.1]} 31... Rh8+ {[%clk 0:00:31.8]} 32.
Kg1 {[%clk 0:00:26.8]} 32... Rcg8 {[%clk 0:00:20.5]} 33. Rxg8 {[%clk 0:00:25.3]}
33... Rxg8+ {[%clk 0:00:21.4]} 34. Kf2 {[%clk 0:00:25.5]} 34... Qa7 {[%clk
0:00:15.9]} 35. c5 {[%clk 0:00:20.6]} 35... Rg4 {[%clk 0:00:09.5]} 36. Rg1
{[%clk 0:00:17.4]} 36... Rf4+ {[%clk 0:00:08.5]} 37. Kg2 {[%clk 0:00:11.8]}
37... Qa5 {[%clk 0:00:03.9]} 38. Qc3 {[%clk 0:00:07.6]} 1-0

[Event "*** SCC Grand Prix: Titled Tuesday Blitz"]
[Site "Chess.com"]
[Date "2020.08.11"]
[Round "7"]
[White "midedu"]
[Black "marianokar"]
[Result "0-1"]
[WhiteElo "2127"]
[BlackElo "2428"]
[TimeControl "180+1"]
[EndTime "11:17:51 PDT"]
[Termination "marianokar won by resignation"]

1. e4 {[%clk 0:03:00.9]} 1... d5 {[%clk 0:02:56.7]} 2. exd5 {[%clk 0:03:00.4]}
2... Qxd5 {[%clk 0:02:57.6]} 3. Nc3 {[%clk 0:03:00.2]} 3... Qe5+ {[%clk
0:02:57.8]} 4. Be2 {[%clk 0:02:59.2]} 4... c6 {[%clk 0:02:57.7]} 5. Nf3 {[%clk
0:02:58.3]} 5... Qc7 {[%clk 0:02:58.1]} 6. d4 {[%clk 0:02:57.6]} 6... Bf5 {[%clk
0:02:57.7]} 7. O-O {[%clk 0:02:57.4]} 7... e6 {[%clk 0:02:57.7]} 8. Bg5 {[%clk
0:02:55.9]} 8... Nd7 {[%clk 0:02:53.7]} 9. Qd2 {[%clk 0:02:54]} 9... Ngf6 {[%clk
0:02:53.3]} 10. Rfe1 {[%clk 0:02:52.4]} 10... Bd6 {[%clk 0:02:52.4]} 11. Bh4
{[%clk 0:02:50.6]} 11... O-O-O {[%clk 0:02:48.6]} 12. Bg3 {[%clk 0:02:43.2]}
12... Nb6 {[%clk 0:02:11.9]} 13. Rac1 {[%clk 0:02:35.1]} 13... Kb8 {[%clk
0:02:00.6]} 14. Red1 {[%clk 0:02:18.6]} 14... h5 {[%clk 0:01:56.9]} 15. Bxd6
{[%clk 0:01:48.4]} 15... Qxd6 {[%clk 0:01:55.9]} 16. Qg5 {[%clk 0:01:44.8]}
16... Rh6 {[%clk 0:01:44.7]} 17. Ne5 {[%clk 0:01:39.9]} 17... Qf8 {[%clk
0:01:35.8]} 18. Qh4 {[%clk 0:01:22.3]} 18... Qg8 {[%clk 0:01:23.1]} 19. Nf3
{[%clk 0:01:12.5]} 19... Ka8 {[%clk 0:01:14.3]} 20. a4 {[%clk 0:01:11.1]} 20...
g5 {[%clk 0:01:10.8]} 21. Nxg5 {[%clk 0:01:05]} 21... Rg6 {[%clk 0:01:11]} 22.
f4 {[%clk 0:01:04.7]} 22... Nbd5 {[%clk 0:00:31.9]} 23. Nxd5 {[%clk 0:00:59.7]}
23... exd5 {[%clk 0:00:30.5]} 24. Bf3 {[%clk 0:00:55.4]} 24... Re8 {[%clk
0:00:30.1]} 25. c4 {[%clk 0:00:49.4]} 25... dxc4 {[%clk 0:00:26.7]} 26. Rxc4
{[%clk 0:00:48.9]} 26... Nd5 {[%clk 0:00:26.9]} 27. Rc5 {[%clk 0:00:32.6]} 27...
f6 {[%clk 0:00:24.8]} 28. Nh3 {[%clk 0:00:26.8]} 28... Ne3 {[%clk 0:00:19.3]}
29. Rd2 {[%clk 0:00:20.4]} 29... Bg4 {[%clk 0:00:19.7]} 30. f5 {[%clk 0:00:19]}
30... Rg7 {[%clk 0:00:18]} 31. Qf2 {[%clk 0:00:18.3]} 31... Bxf3 {[%clk
0:00:17.2]} 32. Qxf3 {[%clk 0:00:18.3]} 32... Ng4 {[%clk 0:00:16.1]} 33. d5
{[%clk 0:00:16.2]} 33... Re1+ {[%clk 0:00:12.9]} 34. Qf1 {[%clk 0:00:15.7]}
34... Rxf1+ {[%clk 0:00:13.1]} 35. Kxf1 {[%clk 0:00:16]} 35... Rd7 {[%clk
0:00:13.3]} 36. d6 {[%clk 0:00:15.6]} 36... Qd8 {[%clk 0:00:12.2]} 37. Nf4
{[%clk 0:00:10.9]} 37... Rxd6 {[%clk 0:00:12.3]} 38. Rxd6 {[%clk 0:00:10.5]}
38... Qxd6 {[%clk 0:00:11.7]} 39. Rc3 {[%clk 0:00:11]} 39... a6 {[%clk
0:00:11.9]} 0-1

[Event "*** SCC Grand Prix: Titled Tuesday Blitz"]
[Site "Chess.com"]
[Date "2020.08.11"]
[Round "7"]
[White "Artyom_ChessMate"]
[Black "seorobert1971"]
[Result "0-1"]
[WhiteElo "2561"]
[BlackElo "2735"]
[TimeControl "180+1"]
[EndTime "11:17:53 PDT"]
[Termination "seorobert1971 won by resignation"]

1. e4 {[%clk 0:03:00.9]} 1... c6 {[%clk 0:03:00.1]} 2. d4 {[%clk 0:03:00.7]}
2... d5 {[%clk 0:03:01]} 3. exd5 {[%clk 0:03:00.8]} 3... cxd5 {[%clk 0:02:59.6]}
4. Bd3 {[%clk 0:03:01.4]} 4... Nc6 {[%clk 0:02:59.3]} 5. c3 {[%clk 0:02:55.3]}
5... g6 {[%clk 0:02:59.2]} 6. Nf3 {[%clk 0:02:54.2]} 6... Bf5 {[%clk 0:02:58.2]}
7. Bf4 {[%clk 0:02:54.4]} 7... Bxd3 {[%clk 0:02:57.6]} 8. Qxd3 {[%clk
0:02:55.3]} 8... Bg7 {[%clk 0:02:57.6]} 9. O-O {[%clk 0:02:55.3]} 9... Nf6
{[%clk 0:02:57.5]} 10. Na3 {[%clk 0:02:55.4]} 10... O-O {[%clk 0:02:57]} 11. Nc2
{[%clk 0:02:54.9]} 11... Ne4 {[%clk 0:02:57]} 12. Nce1 {[%clk 0:02:52]} 12... e6
{[%clk 0:02:55.7]} 13. Qe2 {[%clk 0:02:50.9]} 13... Rc8 {[%clk 0:02:54.5]} 14.
Nd3 {[%clk 0:02:51.1]} 14... Re8 {[%clk 0:02:49.4]} 15. h3 {[%clk 0:02:49.2]}
15... f6 {[%clk 0:02:48.8]} 16. Bh2 {[%clk 0:02:44]} 16... e5 {[%clk 0:02:47.1]}
17. dxe5 {[%clk 0:02:44]} 17... fxe5 {[%clk 0:02:48]} 18. Rab1 {[%clk
0:02:44.2]} 18... Qe7 {[%clk 0:02:41.4]} 19. Rbd1 {[%clk 0:02:42.8]} 19... Rcd8
{[%clk 0:02:37.7]} 20. Rfe1 {[%clk 0:02:41.3]} 20... b5 {[%clk 0:02:28.9]} 21.
Ndxe5 {[%clk 0:02:00]} 21... Nxe5 {[%clk 0:02:28.5]} 22. Nxe5 {[%clk 0:01:59]}
22... Bxe5 {[%clk 0:02:28.4]} 23. Bxe5 {[%clk 0:01:59.9]} 23... Qxe5 {[%clk
0:02:27.3]} 24. f3 {[%clk 0:02:00.1]} 24... Nxc3 {[%clk 0:01:52.1]} 25. Qxe5
{[%clk 0:01:18.8]} 25... Rxe5 {[%clk 0:01:51.2]} 26. bxc3 {[%clk 0:01:19.3]}
26... Rxe1+ {[%clk 0:01:51.1]} 27. Rxe1 {[%clk 0:01:20.2]} 27... Kf7 {[%clk
0:01:50.3]} 28. Rb1 {[%clk 0:01:08.5]} 28... a6 {[%clk 0:01:49]} 29. a4 {[%clk
0:01:07.9]} 29... bxa4 {[%clk 0:01:19.1]} 30. Ra1 {[%clk 0:01:06.9]} 30... a5
{[%clk 0:01:13]} 31. Rxa4 {[%clk 0:01:06.7]} 31... Ra8 {[%clk 0:01:13.6]} 32.
Kf2 {[%clk 0:01:06.6]} 32... Ke6 {[%clk 0:01:13.9]} 33. Ke3 {[%clk 0:01:07]}
33... Kd6 {[%clk 0:01:14.1]} 34. Kd4 {[%clk 0:01:07.3]} 34... Kc6 {[%clk
0:01:14.3]} 35. c4 {[%clk 0:01:00.3]} 35... dxc4 {[%clk 0:01:14]} 36. Kxc4
{[%clk 0:01:01.2]} 36... Kb6 {[%clk 0:01:13.5]} 37. Ra2 {[%clk 0:01:00.4]} 37...
a4 {[%clk 0:00:57.2]} 38. Kb4 {[%clk 0:00:45.9]} 38... a3 {[%clk 0:00:57.3]} 39.
Rxa3 {[%clk 0:00:19.3]} 39... Rxa3 {[%clk 0:00:57]} 40. Kxa3 {[%clk 0:00:20.2]}
40... Kc5 {[%clk 0:00:57.6]} 41. f4 {[%clk 0:00:18.5]} 41... Kd4 {[%clk
0:00:51.7]} 42. g4 {[%clk 0:00:18.6]} 42... Ke4 {[%clk 0:00:51.5]} 43. f5 {[%clk
0:00:19.1]} 43... gxf5 {[%clk 0:00:51.7]} 44. gxf5 {[%clk 0:00:20]} 44... Kxf5
{[%clk 0:00:52]} 45. Kb3 {[%clk 0:00:15.6]} 45... Kf4 {[%clk 0:00:52.1]} 46. Kc2
{[%clk 0:00:06]} 46... Kg3 {[%clk 0:00:51.8]} 47. h4 {[%clk 0:00:06.5]} 47...
Kxh4 {[%clk 0:00:51.8]} 48. Kd2 {[%clk 0:00:07.4]} 48... Kg3 {[%clk 0:00:51.7]}
49. Ke2 {[%clk 0:00:06.6]} 49... Kg2 {[%clk 0:00:51.7]} 50. Ke3 {[%clk
0:00:07.5]} 50... h5 {[%clk 0:00:51]} 51. Kf4 {[%clk 0:00:06.4]} 51... h4 {[%clk
0:00:51]} 0-1